Cogmind - Beta 14 @@@ ROGUE MODE // 2024.10.09 @ 12:29:38 Player: Some Pennies Result: Destroyed by D-53 Grenadier with Mini Grenade Launcher Performance ------------- Evolutions (0) 0 Regions Visited (2) 400 Robots Destroyed (34) 170 Value Destroyed (514) 514 Prototype IDs (0) 0 Alien Tech Used (0) 0 Bonus (67) 67 TOTAL SCORE: 1151 Bonus ------- Follower Combat Kills 67 Cogmind --------- Core Integrity 0/250 Matter 300/300 Energy 250/250 System Corruption 0% Temperature Cool (0) Movement Treading (160) Location -10/Mines Parts ------- > --- POWER (1) -------- Ion Engine > --- PROPULSION (2) --- Light Treads Light Treads > --- UTILITY (2) ------ Heat Sink Large Storage Unit > --- WEAPON (2) ------- Beam Cannon Assault Rifle > --- INVENTORY (15) --- Light Treads Flight Unit Flight Unit Flight Unit Flight Unit Medium Storage Unit Improved Terrain Scanner Seismic Detector Transport Network Coupler ECM Suite Light Armor Plating Hacking Suite Medium Laser Datajack Mining Laser Peak State ------------ > --- POWER ------------ Ion Engine > --- PROPULSION ------- Light Treads Light Treads > --- UTILITY ---------- Medium Storage Unit Seismic Detector > --- WEAPON ----------- Medium Laser Assault Rifle > --- INVENTORY -------- Light Ion Engine Light Treads Improved Terrain Scanner Transport Network Coupler ECM Suite Small Laser Light Assault Rifle Mining Laser [Rating: 8] Favorites ----------- Power Ion Engine Engine Ion Engine Propulsion Light Treads Treads Light Treads Utility Heat Sink Device Heat Sink Storage Large Storage Unit Weapon Assault Rifle Energy Gun Medium Laser Energy Cannon Beam Cannon Ballistic Gun Assault Rifle Special Weapon Mining Laser Build | -11 -10 -10 ------- Run | Yrd Mat Min Slots Evolved . | . . . Power . | . . . Propulsion . | . . . Utility . | . . . Weapon . | . . . Parts Attached 19 | 7 12 . Power 2 | 1 1 . Engine 2 | 1 1 . Core . | . . . Reactor . | . . . Propulsion 5 | 2 3 . Treads 5 | 2 3 . Leg . | . . . Wheel . | . . . Hover . | . . . Flight . | . . . Utility 5 | 2 3 . Device 2 | 1 1 . Storage 3 | 1 2 . Processor . | . . . Hackware . | . . . Protection . | . . . Artifact . | . . . Weapon 7 | 2 5 . Energy Gun 3 | 1 2 . Energy Cannon 1 | . 1 . Ballistic Gun 2 | 1 1 . Ballistic Cannon . | . . . Launcher . | . . . Special Weapon 1 | . 1 . Impact Weapon . | . . . Slashing Weapon . | . . . Piercing Weapon . | . . . Special Melee Weapon . | . . . Unidentified Prototypes . | . . . Parts Lost . | . . . Power . | . . . Propulsion . | . . . Utility . | . . . Weapon . | . . . Highest Loss Streak . | . . . To Critical Strikes . | . . . Average Slot Usage (%) 99 | . 99 100 Engine 14 | . 14 14 Treads 27 | . 27 28 Device 14 | . 14 14 Storage 14 | . 14 14 Energy Gun 4 | . 5 . Energy Cannon 11 | . 11 14 Ballistic Gun 11 | . 10 14 Peak Build Rating 8 | 7 8 8 Average Rating 7 | 5 7 8 On Entrance 5 | . 7 8 Naked Turns . | . . . Heaviest Build 31 | 14 31 31 Greatest Support 40 | 40 40 40 Greatest Overweight (x) . | . . . Average Overweight (x) . | . . . Largest Inventory Capacity 15 | 8 15 15 Average Capacity 12 | 7 11 15 Most Carried 15 | 5 13 15 Average Carried 10 | 1 10 13 Final Capacity 15 | 8 15 15 Final Carried 15 | 4 13 15 Class Distribution -------------------- 80% | Mutant 19% | Scavenger-Mutant Dominant Class ---------------- Mutant | -10/Materials Mutant | -10/Mines Resources | -11 -10 -10 ----------- Run | Yrd Mat Min Matter Collected 642 | 282 315 45 Remotely . | . . . Salvage Created 1047 | 114 855 78 Parts 71 | 10 50 11 Haulers Intercepted 2 | . 2 . Recyclers Shooed 2 | . 2 . Parts Field Recycled . | . . . Retrieved Matter . | . . . Parts Self-Destructed . | . . . Prevented . | . . . Kills | -11 -10 -10 ------- Run | Yrd Mat Min Combat Hostiles Destroyed 20 | . 15 5 Guns 13 | . 11 2 Cannons 7 | . 4 3 Classes Destroyed 8 | 2 6 . Worker 2 | . 2 . Tunneler 3 | 2 1 . Hauler 2 | . 2 . Recycler 3 | 1 2 . Operator 1 | . 1 . Watcher 3 | . 3 . Swarmer 12 | . 7 5 Grunt 8 | . 8 . Best Kill Streak 6 | 3 6 3 Combat Bots Only 3 | . 3 3 Max Kills in Single Turn 2 | 1 2 1 Gunslinging 1 | . 1 . Exploded . | . . . Melee . | . . . Uniques/NPCs Destroyed . | . . . Combat | -11 -10 -10 -------- Run | Yrd Mat Min Hostile Shots Fired 127 | . 101 26 Missed 41 | . 32 9 Damage Taken 1026 | . 820 206 Core 276 | . 206 70 Absorbed by Shields . | . . . Regen/Repaired (Parts) 101 | . 101 . Core Remaining (%) 100 | 100 . . Volleys Fired 93 | 4 74 15 Largest 2 | 2 2 2 Hottest 110 | 60 110 80 Shots Fired 185 | 8 147 30 Gun 137 | 8 114 15 Cannon 47 | . 32 15 Launcher . | . . . Special 1 | . 1 . Kinetic 84 | 4 65 15 Thermal 101 | 4 82 15 Explosive . | . . . Electromagnetic . | . . . Robot Hit Streak 11 | 4 11 5 Robot Miss Streak 4 | 1 4 2 Penetration Max . | . . . Secondary Targets 1 | . 1 . Max Gunslinging Chain 1 | . 1 . Shots Hit Robots 113 | 5 92 16 Core Hits 46 | 4 36 6 Critical Kills . | . . . Critical Parts Destroyed . | . . . Critical Strikes 5 | . 5 . Burn 5 | . 5 . Melee Attacks . | . . . Impact . | . . . Slashing . | . . . Piercing . | . . . Sneak Attacks . | . . . Combat Hostiles . | . . . Follow-up Attacks . | . . . Damage Inflicted 1645 | 57 1338 250 Guns 1120 | 57 954 109 Cannons 525 | . 384 141 Explosions . | . . . Melee . | . . . Ramming . | . . . Kinetic 610 | 13 488 109 Thermal 1035 | 44 850 141 Explosive . | . . . Electromagnetic . | . . . Impact . | . . . Slashing . | . . . Piercing . | . . . Highest Corruption . | . . . Average Corruption . | . . . Corruption Purged . | . . . Corruption Blocked . | . . . Overload Shots . | . . . Overflow Damage 10 | . 2 8 Projectiles 10 | . 2 8 Explosions . | . . . Melee . | . . . Knockbacks . | . . . Impact . | . . . Kinetic . | . . . Secondary . | . . . Self-Inflicted Damage . | . . . Shots . | . . . Rammed . | . . . Targets Rammed . | . . . Kicked . | . . . Crushed . | . . . Highest Temperature 33 | . 33 . Average Temperature 13 | . 13 . Received Heat Transfer 273 | . 237 36 Siege Activations . | . . . Robots Corrupted . | . . . Combat Hostiles . | . . . Parts Fried . | . . . Impact Corruptions . | . . . Robots Melted . | . . . Combat Hostiles . | . . . Parts Melted 2 | . 2 . Heat Transferred 2949 | 100 2553 296 Parts Sabotaged . | . . . Parts Stolen . | . . . Parts Stripped . | . . . Power Chain Reactions . | . . . Alert | -11 -10 -10 ------- Run | Yrd Mat Min Peak Influence 204 | 15 204 148 Initial 9 | . 9 . Average 68 | 6 70 71 Maximum Alert Level 1 | . 1 . Low Security (%) 99 | 100 99 100 Level 1 . | . . . Level 2 . | . . . Level 3 . | . . . Level 4 . | . . . Level 5 . | . . . High Security . | . . . Max Security . | . . . Squads Dispatched 2 | . 2 . Investigation 1 | . 1 . Extermination . | . . . Reinforcement 1 | . 1 . Assault . | . . . Garrison . | . . . Intercept . | . . . Searches Triggered . | . . . Construction Impeded . | . . . Haulers Reinforced . | . . . Active Scanning Responses . | . . . Cargo Convoy Interrupts . | . . . Stealth | -11 -10 -10 --------- Run | Yrd Mat Min Distress Signals 1 | . 1 . Communications Jammed . | . . . Distress Signals . | . . . Times Spotted 35 | . 26 9 Peak Tracking Total 4 | . 4 3 Tactical Retreats 1 | . 1 . Traps | -11 -10 -10 ------- Run | Yrd Mat Min Traps Triggered 1 | . 1 . Indirectly . | . . . Trap Hack Attempts . | . . . Triggered . | . . . Disarmed . | . . . Reprogrammed . | . . . Reused . | . . . Traps Extracted . | . . . Installed . | . . . Triggered . | . . . Machines | -11 -10 -10 ---------- Run | Yrd Mat Min Machines Disabled . | . . . Max in Single Turn . | . . . Machines Repaired . | . . . Machines Dismantled . | . . . Machines Sabotaged . | . . . Overloaded Fab Kills . | . . . Hacking | -11 -10 -10 --------- Run | Yrd Mat Min Machines Accessed 8 | . 8 . Terminals 7 | . 7 . Fabricators . | . . . Repair Stations 1 | . 1 . Recycling Units . | . . . Scanalyzers . | . . . Garrison Access . | . . . Total Hacks 27 | . 27 . Successful 10 | . 10 . Failed 17 | . 17 . Catastrophic 4 | . 4 . Database Lockouts . | . . . Manual 16 | . 16 . Terminals 20 | . 20 . Fabricators . | . . . Repair Stations 7 | . 7 . Recycling Units . | . . . Scanalyzers . | . . . Garrison Access . | . . . Terminal Hacks 2 | . 2 . Robot Analysis 2 | . 2 . Fabricator Hacks . | . . . Repair Station Hacks 3 | . 3 . Scan Component 2 | . 2 . Repair 1 | . 1 . Recycling Unit Hacks . | . . . Scanalyzer . | . . . Garrison Access Hacks . | . . . Unauthorized Hacks 5 | . 5 . Terminals 5 | . 5 . Skim 5 | . 5 . Fabricators . | . . . Repair Stations . | . . . Recycling Units . | . . . Scanalyzers . | . . . Garrison Access . | . . . Data Cores Recovered . | . . . Used . | . . . Hacking Detections 7 | . 7 . Full Trace Events . | . . . Feedback Events . | . . . Feedback Blocked . | . . . Robot Schematics Acquired . | . . . Robots Built . | . . . Authchips . | . . . Time . | . . . Total Robot Build Rating . | . . . Part Schematics Acquired . | . . . Parts Built . | . . . Authchips . | . . . Time . | . . . Total Part Build Rating . | . . . Parts Repaired 1 | . 1 . Time 36 | . 36 . Parts Recycled . | . . . Recycled Matter . | . . . Retrieved Matter . | . . . Retrieved Components . | . . . Parts Scanalyzed . | . . . Part Schematics Acquired . | . . . Parts Damaged . | . . . Bothacking | -11 -10 -10 ------------ Run | Yrd Mat Min Used RIF Installer . | . . . Robots Hacked . | . . . Non-combat . | . . . Combat . | . . . Robot Hacks Applied . | . . . Relay Couplers Released . | . . . Fabnet Peak Effective % . | . . . Robots Rewired . | . . . Allies Hacked . | . . . Hacks Repelled . | . . . Allies | -11 -10 -10 -------- Run | Yrd Mat Min Total Allies 2 | . . 2 Largest Group 2 | . . 2 Highest-Rated Group 38 | . . 38 Highest-Rated Ally 31 | . . 31 Total Orders . | . . . Ally Attacks 9 | . . 9 Total Damage 123 | . . 123 Kills 3 | . . 3 Allies Corrupted . | . . . Allies Melted . | . . . Intel | -11 -10 -10 ------- Run | Yrd Mat Min Robot Analysis Total 2 | . 2 . Derelict Logs Recovered . | . . . Drone Launches . | . . . Drone Recoveries . | . . . Exploration | -11 -10 -10 ------------- Run | Yrd Mat Min Turns Passed 2789 | 97 2206 486 Spaces Moved 1453 | 45 1135 273 Core 2 | 2 . . Treads 1451 | 43 1135 273 Legs . | . . . Wheels . | . . . Hover . | . . . Flight . | . . . Fastest Speed 50 | 50 160 160 Average Speed 159 | 155 160 160 Slowest Speed 160 | 160 160 160 Overloaded Moves . | . . . Propulsion Burnouts . | . . . Robots Hopped . | . . . Cave-ins Triggered . | . . . Exploration Rate (%) 52 | 4 99 53 Regions Visited 2 Branch Regions 1 Pre-discovered Areas 1 | . . 1 Known Exits Taken . | . . . Unknown Exits Taken 2 | 1 1 . Scrap Searched 1 | . . 1 Spaces Dug 1 | . 1 . Terrain Destroyed 1 | . 1 . Melee . | . . . Projectile 1 | . 1 . AOE . | . . . Terrain Rammed . | . . . Walls Destroyed . | . . . Machines Disabled . | . . . Actions | -11 -10 -10 --------- Run | Yrd Mat Min Total 1734 | 61 1379 294 Wait 128 | . 128 . Move 1451 | 44 1134 273 Hop . | . . . Pick Up 27 | 5 18 4 Fast Attach 9 | 7 2 . Attach . | . . . Detach . | . . . Swap 10 | . 10 . Drop 16 | 1 13 2 Fire 93 | 4 74 15 Melee . | . . . Ram . | . . . Kick . | . . . Crush . | . . . Escape Stasis . | . . . Rewire . | . . . Trap . | . . . Miscellaneous . | . . . Route ------- -11/Scrapyard -10/Materials (discovered 5 exits: *Mat x3 / [*Min x2]) -10/Mines (discovered 4 exits: Mat x2 / *Exi / Sub) History --------- Turn | Location | Event 31 | -11/Scrapyard | Discovered new exit (range 15) 98 | -11/Scrapyard | Entered Materials 316 | -10/Materials | Build established: Mutant 653 | -10/Materials | Discovered new exit (range 7) 846 | -10/Materials | Core integrity fell below 50% 886 | -10/Materials | Discovered new exit (range 12) 939 | -10/Materials | Core integrity fell below 20% 1041 | -10/Materials | Discovered new exit (range 14) 1105 | -10/Materials | Learned location of 2 exits from Mines 1109 | -10/Materials | Build established: Scavenger-Mutant 1136 | -10/Materials | Identified exit to Materials 1141 | -10/Materials | Repaired Broken Lgt. Treads 1155 | -10/Materials | Learned 4 Recycling zone layouts 1162 | -10/Materials | Learned 2 Mines zone layouts 1167 | -10/Materials | Learned 4 Recycling zone layouts 1175 | -10/Materials | Learned location of 2 exits from Mines 1640 | -10/Materials | Build established: Mutant 2304 | -10/Materials | Entered Mines 2305 | -10/Mines | Identified exit to Subcaves 2305 | -10/Mines | Identified exit to Exiles 2583 | -10/Mines | Deemed a non-threat by the Exiles lab entrance 2664 | -10/Mines | Learned location of Storage (-7) 2775 | -10/Mines | Assembled infested the area 2790 | -10/Mines | Destroyed by D-53 Grenadier with Mini Grenade Launcher Last Messages --------------- 02666_ G9-YAU(g) slips back into the shadows. 02668_ Dropped Flight Unit. 02668_ Acquired Flight Unit. 02668_ Dropped Com. Wheel. 02670_ Acquired Flight Unit. 02743_ R-06 Scavenger destroyed. 02747_ G-34 Mercenary destroyed. 02750_ G-47 Trooper destroyed. 02755_ K-01 Serf collects debris. 02762_ Acquired 15 matter. 02768_ Acquired 3 matter. 02775_ ALERT: Infestation in the mines, dispatching Demolisher response squad. 02780_ R-06 Scavenger collects Particle Gun. 02784_ R-06 Scavenger collects Sml. Laser. 02785_ C-30 ARC bursts open, deploying its payload. 02785_ D-53 Grenadier unfolds itself. 02788_ R-06 Scavenger collects Lgt. Assault Rifle. Map ----- +----------------------------------------------------+ | ?????????????????????????????????????????????????? | | ?????????????????????????????????????????????????? | | ?????????????????????????????????????????????????? | | ?????????????????????????????????????????????????? | | ?????????????????????????????????????????????????? | | ???????????????????? ????????????????????????????? | | ???????????????????? ????????????????????????????? | | ???????????????????? ????????????????????????????? | | ???????????????????? ????????????????????????????? | | ???????????####????# #?????# #??????????????????? | | ??????????## ##???# #?????# #??????????????????? | | ??????##### #???# #?????# #??????????????????? | | ?????? < #???# #?????# #??????????????????? | | ??????#### ##???# #?????# #??????????????????? | | ?????????# ##????# #?????# #??????????????????? | | ?????????# #?????# ##????# #??????????????????? | | ????????## #????## ###### ??????????????????? | | ??????### ##????# ## #??????????????????? | | ??????# ##?????# ## #####??????????????????? | | ?????? ##??????## ## #??# ??????????????????? | | ??????# ##????????# ## #??# ??????????????????? | | ??????## #????????## ## #??##??????????????????? | | ???????# #????#####= #???#??????????????????? | | ???????# ###### g %t########??????????????????? | | ???????#"% dd r %= ##?????????????????? | | ???????####### k !z! @ ###???????????????? | | #????????????## ####### ##??????????????? | | #######???????## ##?????# ###????????????? | | ##???????# ###??????## #####????????? | | ###?????# #?????????## #????????? | | #?????# #??????????## ## #????????? | | #?????# #???????????## ### #????????? | | """ #?????# ##########???# ## ##?# #??????### | | # """ ######## ## % #???# ## #??# ######## | | # """ ##### ## ##?# | | ## # ## ########## | | ?# ### ######## % * # ### #### #????????# | | ?## ##?# #??????######### #?# ## #???????## | | ??#####??# #??????????????# #?### ## #??????## | | ########## #??????????????# ##??# ## #?###### | | #?????????????## ##?# ## #?# | | ## ########????????????## #?# ## #?# | | ?# #??????????????????## #?# ## ### #### # | | ?# #???????####???????# ### ## #??##### | | ?# #??????## ##??????# ###### #??????? | | ?# #???#### #??????## ####????# #??????? | | ?####??## #???????### #???????# #??????? | | ???????# ##????????## ##???????#%|#??????? | | >??????# ####??????# #????????# #????### | | ???????## % ######## #??####??# #???## # | +----------------------------------------------------+ Best States ------------- Heat Dissipation 35 Energy Generation 10 Energy Capacity 250 Matter Stores 300 Matter Capacity 300 Sight Range 16 Terrain Scan Density 10 Evasion (%) 40 Recoil Reduction 2 Item Schematics ----------------- None Robot Schematics ------------------ None Fabricated ------------ Nothing Alien Tech Used ----------------- None Achievements -------------- None Challenges ------------ None Game ------ Seed ScrapoidCoolantLance Manual? 0 Play Time 00:13:55 Cumulative 366.8 hours Start 2024.10.09 @ 12:08:53 End 2024.10.09 @ 12:29:38 Sessions 1 Manual Loads 0 Difficulty Rogue Special Mode None Game No. 262 Rogue 257 Adventurer 5 Explorer 0 Win Type - Total 9 Types 4/0/5/0/0/0/0/0/0 Lore% 71 Gallery% 86 Achievement% 71 Wizard Run 0 Options --------- Layout 2 ASCII 0 Keyboard 0 Movement Mouse Keybinds 0 Fullscreen 2 Font 24/Smallcaps Map View 50x44 Zoom Use 0% Tactical HUD 1 Map Filters NONE Filters NONE Steam 1 RUN: 3d5b7a42-b16e-4c14-a39b-46d082f67c3a